Cogmind - Beta 15 @@@ ROGUE MODE // 2025.07.07 @ 10:12:49 Player: beans Result: Destroyed by G-34 Mercenary with Small Laser Performance ------------- Evolutions (0) 0 Regions Visited (2) 400 Robots Destroyed (9) 45 Value Destroyed (188) 188 Prototype IDs (0) 0 Alien Tech Used (0) 0 Bonus (0) 0 TOTAL SCORE: 633 Bonus ------- None Cogmind --------- Core Integrity 0/250 Matter 300/300 Energy 100/100 System Corruption 4% Temperature Cool (6) Movement Core (50) Location -10/Subcaves Parts ------- > --- POWER (1) -------- (None) > --- PROPULSION (2) --- (None) > --- UTILITY (2) ------ (None) > --- WEAPON (2) ------- (None) > --- INVENTORY (5) ---- (None) Peak State ------------ > --- POWER ------------ Ion Engine > --- PROPULSION ------- Light Treads Light Treads > --- UTILITY ---------- Hacking Suite > --- WEAPON ----------- EM Pulse Gun Medium Laser > --- INVENTORY -------- (None) [Rating: 8] Favorites ----------- Power Ion Engine Engine Ion Engine Propulsion Light Treads Treads Light Treads Utility Hacking Suite Hackware Hacking Suite Weapon Medium Laser Energy Gun Medium Laser Build | -11 -10 -10 ------- Run | Yrd Mat Sub Slots Evolved . | . . . Power . | . . . Propulsion . | . . . Utility . | . . . Weapon . | . . . Parts Attached 7 | 6 1 . Power 2 | 2 . . Engine 2 | 2 . . Core . | . . . Reactor . | . . . Propulsion 2 | 2 . . Treads 2 | 2 . . Leg . | . . . Wheel . | . . . Hover . | . . . Flight . | . . . Utility 1 | . 1 . Device . | . . . Storage . | . . . Processor . | . . . Hackware 1 | . 1 . Protection . | . . . Artifact . | . . . Weapon 2 | 2 . . Energy Gun 2 | 2 . . Energy Cannon . | . . . Ballistic Gun . | . . . Ballistic Cannon . | . . . Launcher . | . . . Special Weapon . | . . . Impact Weapon . | . . . Slashing Weapon . | . . . Piercing Weapon . | . . . Special Melee Weapon . | . . . Unidentified Prototypes . | . . . Parts Lost 6 | . . 6 Power 1 | . . 1 Propulsion 2 | . . 2 Utility 1 | . . 1 Weapon 2 | . . 2 Highest Loss Streak 3 | . . 3 To Critical Strikes . | . . . Average Backups . | . . . Power . | . . . Propulsion . | . . . Utility . | . . . Weapon . | . . . Tool/Special . | . . . Unused Backups . | . . . Power . | . . . Propulsion . | . . . Utility . | . . . Weapon . | . . . Tool/Special . | . . . Average Slot Usage (%) 46 | . 79 44 Engine 1 | . 14 . Treads 15 | . 28 15 Hackware 13 | . 8 14 Energy Gun 15 | . 28 14 Peak Build Rating 8 | 5 8 8 Average Rating 5 | 3 6 5 On Entrance 4 | . 5 8 Naked Turns 3 | . . 3 Heaviest Build 9 | 9 9 9 Greatest Support 40 | 40 40 40 Greatest Overweight (x) 1 | 1 . . Average Overweight (x) . | . . . Largest Inventory Capacity 5 | 5 5 5 Average Capacity 5 | 5 5 5 Most Carried 3 | 3 1 . Average Carried . | . . . Final Capacity 5 | 5 5 5 Final Carried . | . . . Class Distribution -------------------- 100% | Mutant Dominant Class ---------------- Mutant | -10/Materials Mutant | -10/Subcaves Resources | -11 -10 -10 ----------- Run | Yrd Mat Sub Matter Collected 270 | 244 26 . Remotely . | . . . Salvage Created 381 | . 221 160 Parts 31 | . 23 8 Haulers Intercepted . | . . . Recyclers Shooed 2 | . 2 . Parts Field Recycled . | . . . Retrieved Matter . | . . . Parts Self-Destructed 15 | . . 15 Prevented . | . . . Kills | -11 -10 -10 ------- Run | Yrd Mat Sub Combat Hostiles Destroyed 4 | . 1 3 Guns 4 | . 1 3 Classes Destroyed 7 | . 5 2 Worker 2 | . 2 . Builder 1 | . 1 . Recycler 1 | . 1 . Operator 1 | . 1 . Grunt 1 | . 1 . Sentry 1 | . . 1 Subdweller 2 | . . 2 Best Kill Streak 6 | . 6 1 Combat Bots Only 1 | . 1 1 Max Kills in Single Turn 2 | . 2 1 Gunslinging . | . . . Exploded . | . . . Melee . | . . . Uniques/NPCs Destroyed . | . . . Combat | -11 -10 -10 -------- Run | Yrd Mat Sub Hostile Shots Fired 51 | . 5 46 Missed 12 | . 2 10 Hits 39 | . 3 36 Projectile 39 | . 3 36 Damage Taken 752 | . 34 718 Core 254 | . 10 244 Absorbed by Shields . | . . . Core Remaining (%) 100 | 100 . . Volleys Fired 156 | . 14 142 Largest 2 | . 2 2 Hottest 90 | . 90 90 Shots Fired 173 | . 28 145 Gun 173 | . 28 145 Cannon . | . . . Launcher . | . . . Special . | . . . Kinetic . | . . . Thermal 156 | . 14 142 Explosive . | . . . Electromagnetic 17 | . 14 3 Robot Hit Streak 13 | . 3 13 Robot Miss Streak 3 | . 2 3 Penetration Max . | . . . Secondary Targets . | . . . Shots Hit Robots 34 | . 10 24 Core Hits 19 | . 8 11 Critical Kills . | . . . Critical Parts Destroyed . | . . . Critical Strikes 1 | . . 1 Burn 1 | . . 1 Melee Attacks . | . . . Impact . | . . . Slashing . | . . . Piercing . | . . . Sneak Attacks . | . . . Combat Hostiles . | . . . Follow-up Attacks . | . . . Damage Inflicted 476 | . 170 306 Guns 452 | . 170 282 Cannons . | . . . Explosions . | . . . Melee . | . . . Ramming 24 | . . 24 Kinetic . | . . . Thermal 299 | . 51 248 Explosive . | . . . Electromagnetic 153 | . 119 34 Impact . | . . . Slashing . | . . . Piercing . | . . . Highest Corruption 4 | . . 4 Average Corruption 4 | . . 4 Corruption Purged . | . . . Corruption Blocked . | . . . Overload Shots . | . . . Overflow Damage . | . . . Projectiles . | . . . Explosions . | . . . Melee . | . . . Knockbacks . | . . . Impact . | . . . Kinetic . | . . . Secondary . | . . . Self-Inflicted Damage 11 | . . 11 Shots . | . . . Rammed 8 | . . 8 Targets Rammed 8 | . . 8 Kicked . | . . . Crushed . | . . . Highest Temperature 154 | . 154 5 Average Temperature 60 | . 60 5 Received Heat Transfer 252 | . 18 234 Siege Activations . | . . . Martial Activations . | . . . Shielding Activations . | . . . Robots Disrupted . | . . . Combat Hostiles . | . . . Robots Corrupted . | . . . Combat Hostiles . | . . . Parts Fried . | . . . Impact Corruptions . | . . . Robots Melted . | . . . Combat Hostiles . | . . . Parts Melted 1 | . . 1 Heat Transferred 962 | . 148 814 Parts Sabotaged . | . . . Parts Stolen . | . . . Parts Stripped . | . . . Power Chain Reactions . | . . . Alert | -11 -10 -10 ------- Run | Yrd Mat Sub Maximum Alert Level . | . . . Low Security (%) 100 | 100 100 . Level 1 . | . . . Level 2 . | . . . Level 3 . | . . . Level 4 . | . . . Level 5 . | . . . High Security . | . . . Max Security . | . . . Peak Influence 40 | . 40 . Initial . | . . . Average 6 | . 8 . Influence Increases 75 | . 55 20 Destroy 0b10 Robot/C 40 | . 20 20 Destroy 0b10 Robot/NC 25 | . 25 . Destroy Leader 10 | . 10 . Influence Decreases 75 | . 55 20 Time Decay 75 | . 55 20 Squads Dispatched 1 | . 1 . Investigation . | . . . Extermination . | . . . Reinforcement 1 | . 1 . Assault . | . . . Garrison . | . . . Intercept . | . . . Searches Triggered . | . . . Construction Impeded . | . . . Haulers Reinforced . | . . . Active Scanning Responses . | . . . Cargo Convoy Interrupts . | . . . Stealth | -11 -10 -10 --------- Run | Yrd Mat Sub Distress Signals . | . . . Communications Jammed . | . . . Distress Signals . | . . . Times Spotted 7 | . 2 5 Peak Tracking Total 2 | . 1 2 Tactical Retreats . | . . . Traps | -11 -10 -10 ------- Run | Yrd Mat Sub Traps Triggered 2 | . . 2 Indirectly . | . . . Trap Hack Attempts . | . . . Triggered . | . . . Disarmed . | . . . Reprogrammed . | . . . Reused . | . . . Traps Extracted . | . . . Installed . | . . . Triggered . | . . . Machines | -11 -10 -10 ---------- Run | Yrd Mat Sub Machines Disabled . | . . . Max in Single Turn . | . . . Machines Repaired . | . . . Machines Dismantled . | . . . Machines Sabotaged . | . . . Overloaded Fab Kills . | . . . Hacking | -11 -10 -10 --------- Run | Yrd Mat Sub Machines Accessed 1 | . . 1 Terminals . | . . . Fabricators . | . . . Repair Stations . | . . . Recycling Units . | . . . Scanalyzers . | . . . Garrison Access . | . . . Total Hacks 4 | . . 4 Successful 4 | . . 4 Failed . | . . . Catastrophic . | . . . Database Lockouts . | . . . Manual . | . . . Terminals . | . . . Fabricators . | . . . Repair Stations . | . . . Recycling Units . | . . . Scanalyzers . | . . . Garrison Access . | . . . Terminal Hacks 4 | . . 4 Record 4 | . . 4 Fabricator Hacks . | . . . Repair Station Hacks . | . . . Recycling Unit Hacks . | . . . Scanalyzer . | . . . Garrison Access Hacks . | . . . Unauthorized Hacks . | . . . Terminals . | . . . Fabricators . | . . . Repair Stations . | . . . Recycling Units . | . . . Scanalyzers . | . . . Garrison Access . | . . . Data Cores Recovered . | . . . Used . | . . . Hacking Detections . | . . . Full Trace Events . | . . . Feedback Events . | . . . Feedback Blocked . | . . . Robot Schematics Acquired . | . . . Robots Built . | . . . Authchips . | . . . Time . | . . . Total Robot Build Rating . | . . . Part Schematics Acquired . | . . . Parts Built . | . . . Authchips . | . . . Time . | . . . Total Part Build Rating . | . . . Parts Repaired . | . . . Time . | . . . Parts Recycled . | . . . Recycled Matter . | . . . Retrieved Matter . | . . . Retrieved Components . | . . . Parts Scanalyzed . | . . . Part Schematics Acquired . | . . . Parts Damaged . | . . . Bothacking | -11 -10 -10 ------------ Run | Yrd Mat Sub Used RIF Installer . | . . . Robots Hacked . | . . . Non-combat . | . . . Combat . | . . . Robot Hacks Applied . | . . . Relay Couplers Released . | . . . Fabnet Peak Effective % . | . . . Robots Rewired . | . . . Allies Hacked . | . . . Hacks Repelled . | . . . Allies | -11 -10 -10 -------- Run | Yrd Mat Sub Total Allies . | . . . Largest Group . | . . . Highest-Rated Group . | . . . Highest-Rated Ally . | . . . Total Orders . | . . . Ally Attacks . | . . . Total Damage . | . . . Kills . | . . . Allies Corrupted . | . . . Allies Melted . | . . . Intel | -11 -10 -10 ------- Run | Yrd Mat Sub Active Infowar (turns) . | . . . Robot Analysis Total . | . . . Derelict Logs Recovered 1 | . . 1 Drone Launches . | . . . Drone Recoveries . | . . . Exploration | -11 -10 -10 ------------- Run | Yrd Mat Sub Turns Passed 4927 | 88 212 4627 Spaces Moved 695 | 63 69 563 Core 38 | 33 . 5 Treads 657 | 30 69 558 Legs . | . . . Wheels . | . . . Hover . | . . . Flight . | . . . Fastest Speed 50 | 50 160 50 Average Speed 155 | 120 160 159 Slowest Speed 160 | 160 160 160 Overloaded Moves . | . . . Propulsion Burnouts . | . . . Robots Hopped . | . . . Potential Cave-ins . | . . . Cave-ins Triggered . | . . . Exploration Rate (%) 11 | 5 15 15 Regions Visited 2 Branch Regions 1 Pre-discovered Areas . | . . . Known Exits Taken . | . . . Unknown Exits Taken 2 | 1 1 . Scrap Searched . | . . . Spaces Dug . | . . . Terrain Destroyed . | . . . Melee . | . . . Projectile . | . . . AOE . | . . . Terrain Rammed . | . . . Walls Destroyed . | . . . Machines Disabled . | . . . Actions | -11 -10 -10 --------- Run | Yrd Mat Sub Total 4365 | 75 143 4147 Wait 3493 | . 59 3434 Move 693 | 62 68 563 Hop . | . . . Pick Up 7 | 6 1 . Fast Attach . | . . . Attach 6 | 5 1 . Detach . | . . . Swap 1 | 1 . . Drop 1 | 1 . . Fire 156 | . 14 142 Melee . | . . . Ram 8 | . . 8 Kick . | . . . Crush . | . . . Escape Stasis . | . . . Rewire . | . . . Trap . | . . . Miscellaneous . | . . . Route ------- -11/Scrapyard -10/Materials (discovered 2 exits: [*Min] / *Sub) -10/Subcaves (discovered 3 exits: *Mat x2 / Rec) History --------- Turn | Location | Event 3 | -11/Scrapyard | Discovered new exit (range 15) 89 | -11/Scrapyard | Entered Materials 196 | -10/Materials | Discovered new exit (range 16) 286 | -10/Materials | Discovered new exit (range 4) 301 | -10/Materials | Entered Subcaves 302 | -10/Subcaves | Approached by a straggling Scientist 309 | -10/Subcaves | Build established: Mutant 333 | -10/Subcaves | Discovered new exit (range 8) 556 | -10/Subcaves | Learned 8 Materials zone layouts 564 | -10/Subcaves | Visited Clippyterm 569 | -10/Subcaves | Learned Factory fabricator intel 569 | -10/Subcaves | Identified exit to Materials 569 | -10/Subcaves | Identified exit to Recycling 727 | -10/Subcaves | Core integrity fell below 50% 4924 | -10/Subcaves | Core integrity fell below 20% 4928 | -10/Subcaves | Destroyed by G-34 Mercenary with Small Laser Last Messages --------------- 8E-HTF(c): "I think it's somewhere southwest of here" 14-IQ4(u) tweaks Twisted Machinery. 8E-HTF(c): "I think it's somewhere southwest of here" 14-IQ4(u) tweaks Twisted Machinery. 8E-HTF(c): "I think it's somewhere southwest of here" 14-IQ4(u) tweaks Twisted Machinery. 8E-HTF(c): "I think it's somewhere southwest of here" 8E-HTF(c): "I think it's somewhere west of here" Lgt. Treads destroyed. Med. Laser destroyed. Slammed into G-47 Trooper. 8E-HTF(c) destroyed. Slammed into G-34 Mercenary. Hacking Suite destroyed. System corrupted by crushing effect (+4). Slammed into G-34 Mercenary. Map ----- +----------------------------------------------------+ | ?????????????????????##???## ## #?????? | | ?????????????????????# ##### ##### #?????? | | ?????????????????????# ##??## #?????? | | ?????????????????????# ##??# ##?????? | | ?????????????????????## #??# ###??????? | | ??????????????###?????## #??#### #????????? | | ??????????????# ###### ####### #????????? | | ??????????????# ## ## ## #????????? | | ???????????????# % ## #????????? | | ???????????????## ## ## ##???????? | | ????????????????### ## ##### #???????? | | ??????????????????## ### #### #???????? | | ???????????????????# % #???????? | | ???????????????????# ## #???????? | | ????????????###????## ### ## ###???????? | | ???????????## #####?#### ###### #?????????? | | ???????????#% ##???# ##????# #?????????? | | ???????????# % ##??# ####????## ##????????? | | ??????????## % ##?## #???????# #????????? | | ??????????# #??# ##??###?# #????????? | | ??????????# % #??## #?## #?# ####?????? | | ??????????## ####?# ### ### #?????? | | ???????????### ## ### % ## #?????? | | ?????????????## ### g%% ##?????? | | ??????????????#% ## %%%## # ####??????? | | ??????????????# @###### < #?????????? | | ?????????###??## g## ### #????????? | | ????????## #???## #?## #???????? | | ????????#^^#????## ###??### #??????? | | ##?###### #####?# ### ##?????## #?????? | | ### ##" #?## #### #??????# #?????? | | &&^ ## ##?###### ##?????? #?????? | | % % ### #?????# ###??????? ####?????? | | #^&!##?# #?????# ##?????????## ##????????? | | ### ^ ##### ####### #????????????##?????????? | | #### # ## # # #???????????????????????? | | ##?# ##???????????????????????? | | ???##^ ##????????????????????????? | | ????###### ###### # ##?????????????????????????? | | ?????????###????#######??????????????????????????? | | ?????????????????????????????????????????????????? | | ?????????????????????????????????????????????????? | | ?????????????????????????????????????????????????? | | ?????????????????????????????????????????????????? | | ?????????????????????????????????????????????????? | | ?????????????????????????????????????????????????? | | ?????????????????????????????????????????????????? | | ?????????????????????????????????????????????????? | | ?????????????????????????????????????????????????? | | ?????????????????????????????????????????????????? | +----------------------------------------------------+ Best States ------------- Heat Dissipation 25 Energy Generation 10 Energy Capacity 250 Matter Stores 300 Matter Capacity 300 Sight Range 16 Terrain Scan Density 10 Evasion (%) 40 Recoil Reduction 2 Offensive Hacking 10 Item Schematics ----------------- None Robot Schematics ------------------ None Fabricated ------------ Nothing Repaired ---------- Nothing Alien Tech Used ----------------- None Achievements -------------- None Challenges ------------ None Game ------ Seed MeleeReflexTorch Manual? 0 Play Time 00:12:30 Cumulative 41.0 hours Start 2025.07.07 @ 09:26:49 End 2025.07.07 @ 10:12:49 Sessions 1 Manual Loads 0 Difficulty Rogue Special Mode None Game No. 193 Rogue 193 Adventurer 0 Explorer 0 Win Type - Total 0 Types 0/0/0/0/0/0/0/0/0/0 Lore% 31 Gallery% 25 Achievement% 22 Wizard Run 0 Options --------- Layout 2 ASCII 0 Keyboard 0 Movement Mouse Keybinds 0 Fullscreen 1 Font 24/Smallcaps Map View 50x44 Zoom Use 0% Tactical HUD 0 Map Filters NONE Filters NONE Steam 1 RUN: fc4a02bc-7d36-4c9c-9332-4092d89eeb3e